bitfinex/quotes_SOLUSD_20260224
["timestamp","ask_amount","ask_price","bid_price","bid_amount"]
[1771892600749,0.28432314,78.367,78.341,0.5]
[1771892602830,0.28432314,78.365,78.341,0.5]
[1771892605249,13.04381939,78.373,78.343,0.5]
[1771892605552,5.51118204,78.37,78.343,0.5]
[1771892605949,12.90165782,78.373,78.343,0.5]
[1771892606259,5.51118204,78.37,78.343,0.5]
[1771892609154,12.7601475,78.369,78.343,0.5]
[1771892609537,12.7601475,78.369,78.344,12.76421934]
[1771892609740,12.7601475,78.369,78.345,0.5]
[1771892617257,5.51269942,78.37,78.345,0.5]
[1771892619261,12.7601475,78.369,78.345,0.5]
[1771892623444,44.66051626,78.369,78.345,0.5]
[1771892623648,12.7601475,78.369,78.345,0.5]
[1771892624149,0.28432314,78.373,78.345,0.5]
[1771892624351,0.28432314,78.373,78.346,0.5]
[1771892625478,0.49572075,78.362,78.311,12.76959814]
[1771892625647,0.49572075,78.362,78.33,5.51269942]
[1771892626262,0.49572075,78.358,78.32,5.51269942]
[1771892627363,0.49572075,78.356,78.321,12.76796772]
[1771892627564,0.49572075,78.356,78.322,0.49563709]
[1771892627966,0.49572075,78.356,78.331,0.45067989]
[1771892629591,0.49572075,78.356,78.332,0.45067989]
[1771892630574,0.48218334,78.356,78.332,0.45067989]
[1771892630750,0.48218334,78.349,78.322,0.47625951]
[1771892633378,0.48218334,78.339,78.322,0.47625951]
[1771892634674,0.28432314,78.344,78.322,0.47625951]
[1771892634983,0.28432314,78.343,78.322,0.47625951]
[1771892635375,0.48218334,78.343,78.322,0.47625951]
[1771892638384,13.24672853,78.342,78.322,0.47625951]
[1771892639470,0.48218334,78.341,78.322,0.47625951]
[1771892641589,12.76487107,78.34,78.322,0.47625951]
[1771892642592,0.48218334,78.339,78.322,0.47625951]
[1771892643468,0.48218334,78.339,78.31,18.2824193]
[1771892643469,0.48218334,78.337,78.311,0.47625951]
[1771892644558,0.48218334,78.335,78.311,0.47625951]
[1771892644776,44.67818937,78.338,78.311,0.47625951]
[1771892644777,0.48218334,78.329,78.311,0.47625951]
[1771892645081,0.48218334,78.329,78.31,1e-08]
[1771892649575,0.48218334,78.327,78.31,1e-08]
[1771892651470,12.76682667,78.328,78.311,0.47625951]
[1771892654184,0.28432314,78.334,78.311,0.47625951]
[1771892654378,0.76650648,78.334,78.311,0.47625951]
[1771892655090,13.0477279,78.349,78.321,0.47625951]
[1771892655394,13.52991124,78.349,78.321,0.47625951]
[1771892655590,0.28432314,78.347,78.321,0.47625951]
[1771892655794,0.76650648,78.345,78.321,0.47625951]
[1771892656087,12.76454519,78.342,78.321,0.47625951]
[1771892656393,0.48218334,78.341,78.321,0.47625951]
[1771892660900,0.49629945,78.329,78.31,1e-08]
[1771892664077,12.76682667,78.328,78.31,1e-08]
[1771892664794,13.26312612,78.328,78.31,1e-08]
[1771892665301,0.49629945,78.327,78.31,1e-08]
[1771892666304,0.49629945,78.325,78.31,1e-08]
[1771892666811,12.76715266,78.326,78.31,1e-08]
[1771892667801,31.91217768,78.34,78.31,1e-08]
[1771892667802,0.49629945,78.333,78.311,0.45206448]
[1771892673089,13.26247419,78.332,78.311,0.45206448]
[1771892673290,0.49629945,78.331,78.311,0.45206448]
[1771892673895,11.98967419,78.332,78.311,0.45206448]
[1771892674891,5.51803314,78.4,78.311,12.76959814]
[1771892675093,5.51803314,78.4,78.31,5.51803315]
[1771892675094,5.51803314,78.35,78.321,0.45206448]
[1771892675496,2.82464011,78.373,78.322,0.45206448]
[1771892675497,5.51803314,78.34,78.322,0.45206448]
[1771892675709,5.51803314,78.34,78.311,0.45206448]
[1771892675912,0.49629945,78.339,78.311,0.45206448]
[1771892681895,0.49629945,78.329,78.311,0.45206448]
[1771892684111,0.49629945,78.327,78.311,0.45206448]
[1771892684815,12.76682667,78.328,78.311,0.45206448]
[1771892686315,0.49629945,78.337,78.311,0.45206448]
[1771892687598,0.49629945,78.335,78.311,0.45206448]
[1771892688799,0.45250378,78.328,78.31,1e-08]
[1771892689009,0.45250378,78.319,78.292,12.77269133]
[1771892690919,0.45250378,78.317,78.293,0.45181699]
[1771892693015,3.69383402,78.347,78.29,5.71803314]
[1771892693016,0.45250378,78.337,78.311,0.45181699]
[1771892693226,0.45250378,78.345,78.311,0.45181699]
[1771892693401,0.45250378,78.343,78.321,0.45181699]
[1771892694698,0.45250378,78.339,78.311,0.45181699]
[1771892696017,0.45250378,78.337,78.311,0.45181699]
[1771892698324,44.67933005,78.336,78.311,0.45181699]
[1771892698533,0.5,78.328,78.29,5.71803314]
[1771892699033,0.28432314,78.329,78.29,5.71803314]
[1771892699034,0.5,78.318,78.29,0.2]
[1771892699326,0.5,78.318,78.29,5.71803314]
[1771892700821,5.51803314,78.32,78.29,5.71803314]
[1771892700822,0.5,78.316,78.29,5.71803314]
[1771892702519,0.5,78.316,78.3,5.51803314]
[1771892705232,0.5,78.336,78.31,5.51803314]
[1771892706035,0.5,78.336,78.32,5.51803314]
[1771892706235,0.5,78.336,78.31,5.51803314]
[1771892707741,0.5,78.336,78.311,12.76959814]
[1771892707913,12.7646616,78.342,78.32,5.51803314]
[1771892708430,0.5,78.341,78.31,5.51803314]
[1771892709210,0.5,78.341,78.32,5.51803314]
[1771892709408,13.26470813,78.341,78.32,5.51803314]
[1771892711443,0.5,78.34,78.32,5.51803314]
[1771892711651,12.76503401,78.339,78.32,5.51803314]
[1771892711865,13.26503401,78.339,78.32,5.51803314]
[1771892713245,0.5,78.338,78.31,5.51803314]
[1771892713742,0.5,78.336,78.31,5.51803314]
[1771892716033,44.6787597,78.337,78.31,5.51803314]
[1771892716334,64.31042273,78.358,78.29,0.2]
[1771892716335,12.76210166,78.357,78.33,5.51803314]
[1771892717323,12.76210166,78.357,78.32,5.51803314]
[1771892717518,12.76210166,78.357,78.321,12.76796772]
[1771892718320,13.26210166,78.357,78.321,12.76796772]
[1771892718720,0.5,78.356,78.321,12.76796772]
[1771892719130,108.44741575,78.379,78.28,5.71803314]
[1771892719131,0.5,78.338,78.28,5.71803314]
[1771892719332,0.28432314,78.309,78.28,0.2]
[1771892719521,3.97815716,78.319,78.28,0.2]
[1771892719522,0.5,78.298,78.28,1e-08]
[1771892720524,5.51803314,78.32,78.27,1e-08]
[1771892720525,0.5,78.288,78.27,1e-08]
[1771892721328,0.5,78.286,78.27,1e-08]
[1771892722459,0.5,78.286,78.25,0.2]
[1771892722460,0.5,78.278,78.25,0.2]
[1771892724250,0.5,78.269,78.25,0.2]
[1771892724843,0.5,78.269,78.25,1e-08]
[1771892725145,0.5,78.259,78.242,1e-08]
[1771892726549,3.69383402,78.279,78.242,1e-08]
[1771892726730,50.02135117,97.941,78.242,1e-08]
[1771892726731,0.5,78.299,78.26,5.51803314]
[1771892727847,0.5,78.297,78.26,18.29591497]
[1771892729343,0.5,78.297,78.26,16.9751848]
[1771892730052,0.5,78.295,78.26,16.9751848]
[1771892732048,0.5,78.293,78.26,16.9751848]
[1771892732855,13.27150598,78.3,78.27,5.51803314]
[1771892734556,13.27150598,78.3,78.271,12.77612397]
[1771892735455,0.5,78.299,78.271,12.77612397]
[1771892740554,0.5,78.297,78.266,12.77679637]
[1771892743961,0.5,78.295,78.261,12.77775648]
[1771892747948,0.5,78.293,78.261,12.77775648]
[1771892748365,0.5,78.289,78.252,12.77922609]
[1771892748563,0.5,78.289,78.25,5.5221902]
[1771892748767,0.5,78.279,78.243,12.78069603]
[1771892749149,0.5,78.277,78.243,12.78069603]
[1771892749543,0.5,78.277,78.25,5.5221902]
[1771892751165,12.77530788,78.276,78.243,12.78069603]
[1771892751373,0.5,78.275,78.25,5.5221902]
[1771892752274,0.5,78.275,78.243,12.78069603]
[1771892752460,0.5,78.275,78.25,5.5221902]
[1771892754372,0.5,78.273,78.243,12.78069603]
[1771892754574,0.5,78.273,78.242,1e-08]
[1771892756375,0.5,78.271,78.242,1e-08]
[1771892756570,0.28432314,78.289,78.25,5.5221902]
[1771892756772,0.5,78.288,78.25,5.5221902]
[1771892757383,0.5,78.288,78.25,5.7221902]
[1771892758077,0.5,78.288,78.25,0.2]
[1771892758258,0.5,78.288,78.26,0.2]
[1771892758654,0.5,78.286,78.26,0.2]
[1771892759259,0.5,78.286,78.27,0.2]
[1771892759578,0.5,78.286,78.26,0.2]
[1771892760560,44.70843711,78.285,78.26,0.2]
[1771892760767,0.5,78.284,78.26,0.2]
[1771892761266,0.5,78.279,78.25,0.2]
[1771892761470,44.70843711,78.285,78.242,1e-08]
[1771892761471,0.5,78.269,78.242,1e-08]
[1771892762370,0.5,78.269,78.243,12.78069603]
[1771892762572,0.5,78.269,78.242,1e-08]
[1771892763480,12.77661368,78.268,78.242,1e-08]
[1771892763679,13.27661368,78.268,78.242,1e-08]
[1771892764474,13.27661368,78.268,78.26,0.2]
[1771892765076,0.5,78.267,78.26,0.2]
[1771892765384,0.3,78.267,78.26,0.2]
[1771892766591,0.1,78.267,78.26,0.2]
[1771892767392,13.05914141,78.279,78.26,0.2]
[1771892767592,0.28432314,78.289,78.26,0.2]
[1771892767890,12.77318652,78.289,78.26,0.2]
[1771892768070,12.77318652,78.289,78.261,0.4]
[1771892768791,0.45285412,78.286,78.261,0.4]
[1771892771088,0.45285412,78.284,78.261,0.4]
[1771892772395,12.77416552,78.283,78.261,0.4]
[1771892773993,0.45285412,78.283,78.261,0.4]
[1771892774487,5.5221902,78.29,78.263,0.4]
[1771892774697,12.77081329,78.304,78.271,0.4]
[1771892776693,12.77081329,78.304,78.27,5.5221902]
[1771892776694,12.77081329,78.304,78.273,0.4]
[1771892778473,12.77081329,78.304,78.275,0.4]
[1771892778785,51.06573881,78.331,78.274,12.77563431]
[1771892778786,0.47911202,78.317,78.291,0.4]
[1771892779574,12.76786778,78.322,78.291,0.4]
[1771892780576,0.47911202,78.319,78.281,0.4]
[1771892781590,0.47911202,78.319,78.282,0.4]
[1771892782480,0.47911202,78.319,78.283,12.77416552]
[1771892782683,0.47911202,78.319,78.286,0.4]
[1771892783983,0.48590301,78.317,78.286,0.4]
[1771892784183,0.48590301,78.317,78.291,0.4]
[1771892784889,0.48590301,78.317,78.293,0.4]
[1771892786097,0.48590301,78.317,78.313,1e-08]
[1771892786297,0.48590301,78.317,78.293,0.4]
[1771892786879,0.48590301,78.315,78.293,0.4]
[1771892791078,0.48590301,78.308,78.27,5.5221902]
[1771892791286,0.48590301,78.308,78.271,0.4]
[1771892791484,0.48590301,78.308,78.281,0.4]
[1771892792500,0.48590301,78.306,78.281,0.4]
[1771892793104,0.48590301,78.323,78.291,0.4]
[1771892793296,0.48590301,78.319,78.291,0.4]
[1771892795306,0.48590301,78.317,78.291,0.4]
[1771892795904,0.48590301,78.317,78.293,0.4]
[1771892798091,12.76878287,78.316,78.293,0.4]
[1771892798311,0.48590301,78.315,78.293,0.4]
[1771892798790,0.48590301,78.319,78.295,0.4]
[1771892799582,0.48590301,78.319,78.3,5.51962602]
[1771892799780,0.48590301,78.319,78.301,0.4]
[1771892800906,12.7684568,78.318,78.301,0.4]
[1771892802490,0.48590301,78.319,78.301,0.4]
[1771892802491,0.48590301,78.324,78.301,0.4]
[1771892806517,0.48590301,78.323,78.301,0.4]
[1771892808315,0.45763625,78.321,78.301,0.4]
[1771892809416,0.45763625,78.309,78.286,62.1]
[1771892809740,0.45763625,78.309,78.286,54.00215197]
[1771892811098,5.51962602,78.31,78.286,54.00215197]
[1771892811099,0.45763625,78.307,78.286,54.00215197]
[1771892811304,0.45763625,78.307,78.274,12.77556942]
[1771892811608,0.45763625,78.299,78.272,0.4]
[1771892811915,0.45763625,78.299,78.265,0.4]
[1771892812419,0.45763625,78.298,78.265,0.4]
[1771892813322,0.45763625,78.288,78.265,0.4]
[1771892814616,0.45763625,78.287,78.265,0.4]
[1771892815828,0.45763625,78.287,78.234,5.36086188]
[1771892815829,0.45763625,78.285,78.255,0.4]
[1771892817022,0.45763625,78.288,78.261,0.4]
[1771892817201,0.45763625,78.287,78.261,0.4]
[1771892819806,0.45763625,78.285,78.261,0.4]
[1771892820204,0.45763625,78.285,78.262,12.77759321]
[1771892820411,0.45763625,78.285,78.261,0.4]
[1771892820625,0.45763625,78.285,78.254,0.4]
[1771892821628,0.45763625,78.283,78.256,0.4]
[1771892823408,0.45763625,78.283,78.26,5.91962602]
[1771892823608,0.45763625,78.281,78.26,0.4]
[1771892824221,0.45763625,78.281,78.26,5.91962602]
[1771892825341,0.45763625,78.279,78.26,0.4]
[1771892827311,0.2,78.271,78.26,0.4]
[1771892828328,0.2,78.261,78.26,0.4]
[1771892828634,0.2,78.271,78.26,0.4]
[1771892829726,0.2,78.281,78.261,0.4]
[1771892829933,13.23229133,78.28,78.261,0.4]
[1771892832021,0.45763625,78.279,78.261,0.4]
[1771892832334,0.45763625,78.277,78.261,0.4]
[1771892832512,0.45763625,78.277,78.26,5.51962602]
[1771892833634,0.45763625,78.277,78.253,12.77892333]
[1771892833813,0.45763625,78.277,78.26,5.51962602]
[1771892834233,0.45763625,78.277,78.258,0.2]
[1771892835831,0.45763625,78.277,78.26,5.51962602]
[1771892836032,0.45763625,78.277,78.26,5.71962602]
[1771892836939,0.45763625,78.277,78.261,0.2]
[1771892837531,12.77530788,78.276,78.261,0.2]
[1771892838238,0.45763625,78.277,78.261,0.2]
[1771892839643,0.49169832,78.275,78.257,0.2]
[1771892839943,0.49169832,78.275,78.251,0.2]
[1771892840644,0.49169832,78.275,78.25,5.51962602]
[1771892841020,0.49169832,78.275,78.25,5.71962602]
[1771892841222,0.49169832,78.275,78.251,0.2]
[1771892842146,0.49169832,78.275,78.252,12.77922609]
[1771892842331,0.49169832,78.275,78.252,12.97922609]
[1771892845728,0.4591462,78.273,78.244,0.2]
[1771892845929,0.4591462,78.273,78.243,12.78054639]
[1771892848335,0.4591462,78.271,78.243,12.78054639]
[1771892848743,0.4591462,78.259,78.24,1e-08]
[1771892849748,0.4591462,78.249,78.24,1e-08]
[1771892851142,0.4591462,78.247,78.24,1e-08]
[1771892853447,5.51962602,78.25,78.24,1e-08]
[1771892853448,0.4591462,78.245,78.24,1e-08]
[1771892853652,0.4591462,78.245,78.21,5.61962602]
[1771892853653,0.4591462,78.245,78.211,0.2]
[1771892853832,0.4591462,78.239,78.211,0.2]
[1771892854228,0.4591462,78.239,78.212,0.2]
[1771892857336,0.4591462,78.239,78.21,5.61962602]
[1771892857337,0.4591462,78.237,78.214,0.2]
[1771892859552,0.4591462,78.256,78.231,0.2]
[1771892862353,12.77763417,78.262,78.232,12.78249309]
[1771892862654,0.4591462,78.259,78.233,0.2]
[1771892863056,0.4591462,78.259,78.231,12.78251452]
[1771892863272,0.4591462,78.249,78.224,0.2]
[1771892864439,0.4591462,78.248,78.212,0.2]
[1771892865149,12.77107509,78.249,78.221,0.2]
[1771892866747,5.5311856,78.25,78.221,12.9842556]
[1771892866947,5.5311856,78.25,78.222,0.45726643]
[1771892867155,0.4591462,78.249,78.222,0.45726643]
[1771892869545,0.47430865,78.247,78.224,0.45508016]
[1771892871457,0.47430865,78.247,78.225,13.2387171]
[1771892872155,0.47430865,78.247,78.225,12.78363694]
[1771892872359,0.47430865,78.247,78.226,0.45508016]
[1771892873043,0.47430865,78.245,78.226,0.45508016]
[1771892882551,0.47430865,78.245,78.228,0.45508016]
[1771892882969,31.94520757,78.259,78.231,0.45508016]
[1771892883562,12.21232746,78.28,78.241,0.45508016]
[1771892883871,6.68114186,78.28,78.241,0.45508016]
[1771892884072,6.68114186,78.28,78.251,0.45508016]
[1771892884073,0.28432314,78.28,78.251,0.45508016]
[1771892884374,31.93622973,78.281,78.251,0.45508016]
[1771892884874,0.47430865,78.279,78.251,0.45508016]
[1771892885973,0.47430865,78.277,78.251,0.45508016]
[1771892890389,12.77530788,78.276,78.253,0.45508016]
[1771892890563,12.7747421,78.28,78.253,0.45508016]
[1771892891265,12.77341769,78.288,78.271,0.45508016]
[1771892891781,63.8429754,78.318,78.252,44.72729131]
[1771892891782,0.47430865,78.319,78.28,5.5311856]
[1771892892081,0.47430865,78.319,78.281,0.45508016]
[1771892892763,0.47430865,78.315,78.283,0.45508016]
[1771892896574,12.76910897,78.314,78.283,0.45508016]
[1771892896773,0.47430865,78.313,78.283,0.45508016]
[1771892900986,12.76943508,78.312,78.284,12.77400235]
[1771892901182,0.4787659,78.311,78.285,0.46875589]
[1771892908595,3.69383402,78.332,78.266,0.46875589]
[1771892908596,0.4787659,78.299,78.266,0.46875589]
[1771892908889,0.4787659,78.299,78.271,0.46875589]
[1771892911495,0.4787659,78.297,78.272,0.46875589]
[1771892911997,0.4787659,78.302,78.281,0.46875589]
[1771892913580,0.4787659,78.3,78.281,0.46875589]
[1771892913907,0.4787659,78.299,78.271,0.46875589]
[1771892914083,0.4787659,78.299,78.272,0.46875589]
[1771892918504,0.4787659,78.297,78.281,0.46875589]
[1771892919400,12.77204454,78.296,78.281,0.46875589]
[1771892919592,0.4787659,78.295,78.281,0.46875589]
[1771892920500,0.4787659,78.295,78.277,0.46875589]
[1771892921502,0.4787659,78.293,78.262,0.46875589]
[1771892921705,0.4787659,78.289,78.262,0.46875589]
[1771892923000,0.4787659,78.287,78.262,0.46875589]
[1771892925204,0.4787659,78.285,78.264,0.46875589]
[1771892927106,0.4787659,78.285,78.266,0.46875589]
[1771892929514,0.49764315,78.289,78.266,0.46875589]
[1771892931606,13.27099283,78.288,78.266,0.46875589]
[1771892932705,0.49764315,78.287,78.266,0.46875589]
[1771892935325,0.49764315,78.299,78.271,0.4895816]
[1771892935515,51.05122124,78.353,78.267,12.77677693]
[1771892935516,12.7710459,78.303,78.281,0.4895816]
[1771892935719,0.49764315,78.302,78.281,0.4895816]
[1771892940023,13.26887212,78.301,78.281,0.4895816]
[1771892940522,0.49764315,78.3,78.281,0.4895816]
[1771892940911,12.77155519,78.299,78.281,0.4895816]
[1771892941230,31.92285174,78.314,78.291,0.4895816]
[1771892941231,13.26691517,78.313,78.291,0.4895816]
[1771892941401,0.49764315,78.312,78.291,0.4895816]
[1771892943719,0.49764315,78.309,78.287,0.4895816]
[1771892943923,0.49764315,78.309,78.278,0.4895816]
[1771892946130,0.49764315,78.307,78.281,0.4895816]
[1771892948934,0.49764315,78.305,78.281,0.4895816]
[1771892950031,0.49764315,78.303,78.281,0.4895816]
[1771892952016,0.49764315,78.301,78.281,0.4895816]
[1771892952657,0.49764315,78.301,78.274,0.4895816]
[1771892955733,12.77139208,78.3,78.274,0.4895816]
[1771892955936,12.77139208,78.3,78.281,0.4895816]
[1771892956819,0.49764315,78.308,78.281,0.4895816]
[1771892961644,12.77025042,78.307,78.281,0.4895816]
[1771892961943,0.48819316,78.306,78.281,0.4895816]
[1771892963338,12.77057659,78.305,78.281,0.4895816]
[1771892963542,0.48819316,78.304,78.281,0.4895816]
[1771892965527,0.48819316,78.302,78.281,0.4895816]
[1771892966341,0.48819316,78.302,78.283,0.45814659]
[1771892966539,12.77090277,78.303,78.283,0.45814659]
[1771892967831,31.92143351,78.318,78.283,0.45814659]
[1771892967832,0.48819316,78.317,78.283,0.45814659]
[1771892969328,0.48819316,78.315,78.283,0.45814659]
[1771892971128,102.08331052,78.368,78.291,0.45814659]
[1771892971129,0.48819316,78.326,78.291,0.45814659]
[1771892971340,0.48819316,78.325,78.301,0.45814659]
[1771892974751,0.48819316,78.323,78.301,0.45814659]
[1771892976051,12.7678047,78.322,78.301,0.45814659]
[1771892976353,0.48819316,78.321,78.301,0.45814659]
[1771892978754,12.76813074,78.32,78.301,0.45814659]
[1771892978963,0.48819316,78.319,78.301,0.45814659]
[1771892981049,0.48819316,78.317,78.301,0.45814659]
[1771892981247,0.48819316,78.317,78.284,31.93499061]
[1771892981440,0.48819316,78.317,78.29,5.518917]
[1771892981749,0.48819316,78.317,78.291,0.45814659]
[1771892982556,0.48819316,78.317,78.292,0.45814659]
[1771892984739,0.48819316,78.315,78.292,0.45814659]
[1771892985357,0.48819316,78.315,78.294,0.45814659]
[1771892991262,0.46920063,78.313,78.294,0.45814659]
[1771892993565,0.46920063,78.322,78.3,5.518917]
[1771892993749,0.46920063,78.329,78.301,0.45580485]
[1771892994258,0.46920063,78.329,78.31,5.518917]
[1771892994571,0.2,78.33,78.311,0.45580485]
[1771892994866,0.46920063,78.359,78.323,0.45580485]
[1771892995368,0.46920063,78.359,78.331,0.45580485]
[1771892996148,0.46920063,78.359,78.327,0.45580485]
[1771892996359,0.46920063,78.359,78.321,0.45580485]
[1771892996568,0.46920063,78.359,78.322,0.45580485]
[1771892999663,0.46920063,78.357,78.324,0.45580485]
[1771893001880,0.46920063,78.355,78.324,0.45580485]
[1771893003752,0.46920063,78.355,78.331,0.45580485]
[1771893003954,0.46920063,78.355,78.332,0.45580485]
[1771893005556,12.7601475,78.369,78.35,5.17019668]
[1771893005855,0.46920063,78.368,78.35,5.17019668]
[1771893006054,0.46920063,78.368,78.34,5.17019668]
[1771893006274,0.46920063,78.368,78.34,17.93500242]
[1771893007471,0.46920063,78.347,78.31,5.17019668]
[1771893007770,0.46920063,78.347,78.311,0.17765]
[1771893008565,0.46920063,78.345,78.312,0.17765]
[1771893008766,5.17019668,78.34,78.307,12.77015769]
[1771893009074,0.46920063,78.329,78.291,0.17765]
[1771893009755,0.46920063,78.319,78.29,5.17019668]
[1771893011252,0.46920063,78.317,78.286,0.17765]
[1771893011678,0.46920063,78.309,78.275,0.17765]
[1771893012180,0.46920063,78.309,78.28,5.17019668]
[1771893012673,0.46920063,78.307,78.28,17.94475418]
[1771893013472,0.46920063,78.307,78.28,12.7745575]
[1771893013671,0.46920063,78.307,78.273,0.17765]
[1771893013873,0.46920063,78.299,78.261,0.17765]
[1771893014673,0.46920063,78.299,78.256,12.77857288]
[1771893014674,0.46920063,78.287,78.256,0.17765]
[1771893014868,0.46920063,78.287,78.252,0.17765]
[1771893015067,0.46920063,78.279,78.252,0.17765]
[1771893016480,0.46920063,78.279,78.26,5.17019668]
[1771893016681,0.46920063,78.279,78.261,0.17765]
[1771893020592,0.46322659,78.329,78.271,0.17765]
[1771893020877,0.46322659,78.317,78.282,0.17765]
[1771893021677,0.48863157,78.309,78.276,12.77519674]
[1771893021868,0.48863157,78.299,78.27,0.17765]
[1771893022067,0.48863157,78.299,78.264,0.17765]
[1771893022561,0.48863157,78.299,78.271,0.17765]
[1771893022761,5.17019668,78.31,78.27,5.17019668]
[1771893022762,0.48863157,78.309,78.281,0.17765]
[1771893023279,0.48863157,78.308,78.28,5.17019668]
[1771893024482,0.48863157,78.308,78.281,12.77449189]
[1771893024873,12.77025042,78.307,78.281,12.77449189]
[1771893025069,0.48863157,78.306,78.281,12.77449189]
[1771893027405,0.48863157,78.306,78.281,12.95214189]
[1771893027582,0.48863157,78.306,78.281,12.77449189]
[1771893027765,0.48863157,78.306,78.281,12.95214189]
[1771893028177,0.48863157,78.306,78.282,0.17765]
[1771893029887,12.77057659,78.305,78.282,0.17765]
[1771893030091,12.77057659,78.305,78.281,12.77449189]
[1771893030092,0.48863157,78.304,78.281,12.77449189]
[1771893031776,0.48863157,78.304,78.281,12.95214189]
[1771893032178,0.48863157,78.304,78.282,0.17765]
[1771893032381,12.7693378,78.313,78.291,0.17765]
[1771893032694,12.76838032,78.319,78.301,0.17765]
[1771893033089,0.48863157,78.318,78.3,5.17019668]
[1771893034799,0.48863157,78.322,78.301,0.17765]
[1771893035400,0.48863157,78.339,78.311,0.17765]
[1771893036488,12.76503401,78.339,78.311,0.17765]
[1771893036792,0.48863157,78.338,78.311,0.17765]
[1771893039192,12.76535991,78.337,78.311,0.17765]
[1771893039497,0.48863157,78.336,78.311,0.17765]
[1771893041201,12.76499971,78.34,78.321,0.17765]
[1771893041400,0.48863157,78.346,78.33,5.17047279]
[1771893041593,0.48863157,78.346,78.328,0.17765]
[1771893041992,0.48863157,78.355,78.328,0.17765]
[1771893042188,0.48863157,78.361,78.341,0.17765]
[1771893043488,0.48863157,78.367,78.342,0.17765]
[1771893044408,0.48863157,78.367,78.35,5.17047279]
[1771893044585,0.48863157,78.367,78.35,5.34812279]
[1771893045287,0.48863157,78.367,78.35,5.17047279]
[1771893045493,0.48863157,78.366,78.34,5.17047279]
[1771893045694,0.48863157,78.366,78.337,12.76524696]
[1771893046495,0.48863157,78.364,78.334,0.17765]
[1771893046807,0.48863157,78.364,78.34,5.17047279]
[1771893051207,0.48863157,78.364,78.341,12.76470813]
[1771893052111,0.47228393,78.359,78.33,5.17047279]
[1771893053202,0.47228393,78.357,78.33,17.93692394]
[1771893053817,0.47228393,78.357,78.33,5.17047279]
[1771893056122,0.47228393,78.355,78.33,5.17047279]
[1771893056612,0.47228393,78.355,78.331,12.76633772]
[1771893061220,0.47228393,78.355,78.316,18.8]
[1771893061221,0.47228393,78.349,78.316,18.97765]
[1771893061416,0.47228393,78.349,78.317,0.17765]
[1771893061620,0.47228393,78.349,78.321,0.17765]
[1771893062008,0.47228393,78.369,78.33,5.17047279]
[1771893062214,0.47228393,78.349,78.321,0.17765]
[1771893063718,0.47228393,78.347,78.32,12.76811892]
[1771893064320,0.47228393,78.347,78.31,5.17047279]
[1771893064321,0.47228393,78.339,78.31,0.17765]
[1771893064522,0.47228393,78.339,78.31,5.34812279]
[1771893064817,0.47228393,78.339,78.311,0.17765]
[1771893065518,0.47228393,78.337,78.311,12.94716725]
[1771893067622,0.47228393,78.337,78.32,5.17047279]
[1771893068304,0.47228393,78.337,78.318,0.17765]
[1771893069614,12.76552287,78.336,78.318,0.17765]
[1771893070125,0.47228393,78.337,78.321,0.17765]
[1771893070721,0.47228393,78.336,78.321,0.17765]
[1771893073228,31.90891918,78.348,78.316,0.17765]
[1771893073229,0.47228393,78.334,78.316,0.17765]
[1771893075923,0.47228393,78.334,78.32,5.17047279]
[1771893076125,0.47228393,78.334,78.32,5.34812279]
[1771893076836,0.47228393,78.348,78.322,0.17765]
[1771893080635,0.49195659,78.346,78.322,0.17765]
[1771893081030,0.49195659,78.346,78.321,12.76796772]
[1771893082221,0.49195659,78.346,78.31,37.09454314]
[1771893082222,0.49195659,78.346,78.31,5.17047279]
[1771893082732,0.45946638,78.344,78.311,12.76959814]
[1771893083643,0.45946638,78.344,78.312,0.17765]
[1771893083849,12.76438226,78.343,78.312,0.17765]
[1771893084143,0.45946638,78.342,78.312,0.17765]
[1771893086247,0.45946638,78.34,78.312,0.17765]
[1771893088243,12.76503401,78.339,78.312,0.17765]
[1771893088547,0.45946638,78.346,78.312,0.17765]
[1771893090848,0.45946638,78.344,78.312,0.17765]
[1771893091343,5.17047279,78.33,78.302,18.8]
[1771893091560,0.45946638,78.329,78.302,18.8]
[1771893093557,0.45946638,78.327,78.293,12.77253394]
[1771893093736,0.45946638,78.327,78.289,12.77313697]
[1771893094045,0.45946638,78.327,78.291,0.17765]
[1771893094228,0.45946638,78.319,78.291,0.17765]
[1771893095631,0.45946638,78.318,78.291,0.17765]
[1771893097055,0.45946638,78.328,78.291,0.17765]
[1771893097355,0.45946638,78.328,78.301,0.17765]